bitfinex/quotes_ETHUSD_20251217
["timestamp","ask_amount","ask_price","bid_price","bid_amount"]
[1765970074378,0.001,2935.0,2934.9,0.002]
[1765970074584,1.088,2935.0,2934.9,0.002]
[1765970075746,0.3563,2935.0,2934.9,0.002]
[1765970075944,0.8953,2935.0,2934.9,4.18831855]
[1765970076973,0.001,2935.0,2934.9,4.18831855]
[1765970077161,0.7327,2935.0,2934.9,4.18831855]
[1765970077564,1.0864,2935.0,2934.9,0.002]
[1765970078364,0.1927,2934.1,2934.0,0.002]
[1765970078565,1.0834,2934.1,2934.0,0.002]
[1765970084955,0.949904,2934.1,2934.0,0.002]
[1765970085181,1.0834,2934.1,2934.0,0.002]
[1765970086091,0.5444,2934.1,2934.0,0.002]
[1765970086269,1.0844,2934.1,2934.0,0.002]
[1765970086781,0.1927,2934.1,2934.0,0.002]
[1765970086982,0.7327,2934.1,2934.0,0.002]
[1765970087466,1.0844,2934.1,2934.0,0.002]
[1765970088393,1.0836,2934.1,2934.0,0.002]
[1765970090468,1.489104,2934.1,2934.0,0.002]
[1765970092490,2.06005754,2934.1,2934.0,0.002]
[1765970092690,6.24637609,2934.1,2934.0,0.002]
[1765970093271,6.71075632,2934.1,2934.0,0.002]
[1765970093467,6.17075632,2934.1,2934.0,0.002]
[1765970093674,6.71075632,2934.1,2934.0,0.002]
[1765970094266,6.17075632,2934.1,2934.0,0.002]
[1765970094775,6.71075632,2934.1,2934.0,0.002]
[1765970095789,6.17075632,2934.1,2934.0,0.002]
[1765970095957,6.71075632,2934.1,2934.0,0.002]
[1765970097686,2.52443777,2934.1,2934.0,0.002]
[1765970097890,6.13980278,2934.1,2934.0,0.002]
[1765970098468,5.59980278,2934.1,2934.0,0.002]
[1765970098988,6.13980278,2934.1,2934.0,0.002]
[1765970100001,0.940404,2933.8,2933.7,0.002]
[1765970102993,1.0749,2933.8,2933.7,0.002]
[1765970103194,0.5349,2933.8,2933.7,0.002]
[1765970103616,1.0749,2933.8,2933.7,0.002]
[1765970104111,0.5349,2933.8,2933.7,0.002]
[1765970104413,1.0749,2933.8,2933.7,0.002]
[1765970105795,0.5349,2933.8,2933.7,0.002]
[1765970105995,1.0749,2933.8,2933.7,0.002]
[1765970106700,0.5349,2933.8,2933.7,0.002]
[1765970106903,0.0035,2933.8,2933.7,4.18831855]
[1765970107100,0.5435,2933.8,2933.7,4.60715041]
[1765970107695,0.54,2933.8,2933.7,5.08125041]
[1765970108112,0.001,2934.1,2933.7,5.08125041]
[1765970108113,0.3535,2934.1,2933.7,5.08125041]
[1765970108318,0.5482,2934.1,2934.0,4.18631855]
[1765970108514,0.1957,2934.1,2934.0,4.18631855]
[1765970108717,0.541,2934.1,2934.0,4.66041855]
[1765970108889,0.541,2934.1,2934.0,5.12646041]
[1765970110822,0.001,2934.1,2934.0,5.12646041]
[1765970111122,0.7357,2934.1,2934.0,4.65236041]
[1765970111318,0.1957,2934.1,2934.0,4.65236041]
[1765970111523,0.7357,2934.1,2934.0,4.65236041]
[1765970112261,0.7357,2934.1,2934.0,0.46604186]
[1765970112262,1.0859,2934.1,2934.0,0.46604186]
[1765970112447,0.356,2933.8,2933.7,0.46638023]
[1765970112597,0.356,2933.8,2933.7,0.002]
[1765970114334,0.54,2933.8,2933.7,5.17950519]
[1765970114495,0.54,2933.8,2933.7,5.66356907]
[1765970115096,0.7347,2933.8,2933.7,4.70646907]
[1765970115303,1.0857,2933.8,2933.7,0.52015052]
[1765970115512,1.0857,2933.8,2933.7,0.002]
[1765970115923,0.7347,2933.8,2933.7,0.002]
[1765970116725,0.1947,2933.8,2933.7,5.44865849]
[1765970116915,0.0002,2934.1,2933.7,5.44865849]
[1765970117222,0.54,2933.8,2933.7,5.92275849]
[1765970117425,0.7362,2933.8,2933.7,6.04113434]
[1765970117607,0.1962,2933.8,2933.7,6.04113434]
[1765970117798,0.7362,2933.8,2933.7,6.04113434]
[1765970118498,0.54,2933.8,2933.7,6.51523434]
[1765970118694,0.0002,2934.1,2933.7,6.99823434]
[1765970119025,0.54,2934.0,2933.9,6.40375849]
[1765970119203,0.54,2934.0,2933.9,5.92075849]
[1765970120110,0.0002,2934.1,2933.9,5.92075849]
[1765970120299,0.0002,2934.1,2933.9,5.44665849]
[1765970120498,0.0002,2934.1,2934.0,0.61466819]
[1765970121405,0.0002,2934.1,2934.0,1.07904842]
[1765970121828,0.0002,2934.1,2934.0,1.61904842]
[1765970122033,0.0002,2934.1,2934.0,1.07904842]
[1765970123214,0.1957,2934.1,2934.0,1.07904842]
[1765970123536,0.1957,2934.1,2934.0,0.46438023]
[1765970123741,0.0002,2934.1,2934.0,0.46438023]
[1765970124038,0.0002,2934.1,2934.0,0.94738023]
[1765970124750,0.0002,2934.1,2934.0,0.46438023]
[1765970125617,0.0002,2934.1,2934.0,0.94738023]
[1765970125819,0.0002,2934.1,2934.0,0.46438023]
[1765970126463,0.0002,2934.1,2934.0,1.1230341]
[1765970127159,0.0002,2934.1,2934.0,1.6060341]
[1765970128260,0.0002,2934.1,2934.0,1.1230341]
[1765970128663,0.0002,2934.1,2934.0,1.6060341]
[1765970128959,0.0002,2934.1,2934.0,1.1230341]
[1765970131552,0.0002,2934.1,2934.0,1.1250341]
[1765970132646,0.0002,2934.1,2934.0,1.6080341]
[1765970133031,0.0002,2934.1,2934.0,1.1250341]
[1765970133231,0.0002,2934.1,2934.0,1.6080341]
[1765970133618,0.0002,2934.1,2934.0,1.1250341]
[1765970134449,0.0002,2934.1,2934.0,1.6152341]
[1765970134646,0.0002,2934.1,2934.0,1.1250341]
[1765970134824,0.1957,2934.1,2934.0,1.1250341]
[1765970135025,0.5467,2934.1,2934.0,0.002]
[1765970135425,0.5402,2934.1,2934.0,0.46638023]
[1765970135624,0.5402,2934.1,2934.0,0.95918023]
[1765970135824,0.1957,2934.1,2934.0,0.002]
[1765970136026,0.7357,2934.1,2934.0,0.002]
[1765970136253,0.7349,2934.1,2934.0,0.002]
[1765970136440,0.1949,2934.1,2934.0,0.002]
[1765970136639,0.7349,2934.1,2934.0,0.002]
[1765970136863,1.0859,2934.1,2934.0,0.002]
[1765970137470,1.0859,2934.1,2934.0,0.46638023]
[1765970137902,0.3519,2934.9,2934.0,5.11509532]
[1765970138102,1.0853,2934.6,2934.5,4.18941509]
[1765970138464,0.0035,2934.4,2934.3,4.18941509]
[1765970141196,0.3519,2934.9,2934.3,4.18941509]
[1765970141396,0.1949,2934.7,2934.6,4.18941509]
[1765970141589,0.5453,2934.7,2934.6,4.18941509]
[1765970141902,0.7349,2934.7,2934.0,0.46638023]
[1765970142210,0.1965,2934.4,2934.3,4.18941509]
[1765970142585,0.5468,2934.1,2934.0,0.002]
[1765970143210,0.001,2935.0,2934.0,4.65071509]
[1765970143211,0.3519,2934.9,2934.0,4.65071509]
[1765970143409,0.1949,2934.4,2934.3,4.18941509]
[1765970143785,0.7349,2934.4,2934.3,4.18941509]
[1765970144603,0.1949,2934.4,2934.3,4.18941509]
[1765970144822,0.001,2935.0,2934.3,4.64871509]
[1765970144823,0.3519,2934.9,2934.3,4.64871509]
[1765970145112,0.3519,2934.9,2934.3,0.4593]
[1765970145113,0.54,2934.4,2934.3,0.4593]
[1765970145484,0.7349,2934.4,2934.3,0.4593]
[1765970146216,0.1949,2934.4,2934.3,4.6471777]
[1765970146509,0.7349,2934.4,2934.3,4.6471777]
[1765970146892,0.7349,2934.4,2934.3,4.1878777]
[1765970147812,0.7359,2934.4,2934.3,4.1878777]
[1765970148782,0.7359,2934.4,2934.0,0.4742]
[1765970148987,0.7359,2934.4,2934.3,4.1878777]
[1765970149614,0.7359,2934.4,2934.0,4.6620777]
[1765970149797,0.7359,2934.4,2934.3,4.1878777]
[1765970150194,0.0035,2934.2,2934.1,4.1878777]
[1765970150403,0.5468,2934.1,2934.0,4.1898777]
[1765970150695,0.5468,2934.1,2934.0,0.002]
[1765970156535,0.5478,2934.1,2934.0,0.002]
[1765970160235,0.547,2934.1,2934.0,0.002]
[1765970166508,1.02048777,2934.1,2934.0,0.002]
[1765970167637,1.56048777,2934.1,2934.0,0.002]
[1765970168743,10.36675244,2934.1,2934.0,0.002]
[1765970169043,6.17887474,2934.1,2934.0,0.002]
[1765970171906,5.63887474,2934.1,2934.0,0.002]
[1765970172113,6.17887474,2934.1,2934.0,0.002]
[1765970174725,5.63887474,2934.1,2934.0,0.002]
[1765970175028,6.74276221,2934.1,2934.0,0.002]
[1765970175212,1.11088747,2934.1,2934.0,0.002]
[1765970175412,1.087,2934.1,2934.0,0.002]
[1765970175840,0.547,2934.1,2934.0,0.002]
[1765970176052,0.3521,2934.1,2934.0,0.002]
[1765970176221,0.8921,2934.1,2934.0,0.002]
[1765970176416,0.3521,2934.1,2934.0,0.002]
[1765970176623,0.541,2934.1,2934.0,5.63444673]
[1765970176824,0.541,2934.1,2934.0,6.20129995]
[1765970177021,0.001,2934.1,2934.0,6.20129995]
[1765970177358,0.541,2934.1,2934.0,6.20129995]
[1765970177920,0.001,2934.1,2934.0,6.20129995]
[1765970179058,0.001,2934.1,2934.0,5.70969995]
[1765970179365,0.001,2934.1,2934.0,1.51913345]
[1765970179661,0.001,2934.1,2934.0,0.95228023]
[1765970179865,0.541,2934.1,2934.0,0.95228023]
[1765970180171,0.8921,2934.1,2934.0,0.002]
[1765970180330,0.001,2934.1,2934.0,0.9795]
[1765970180533,0.541,2934.1,2934.0,1.49650665]
[1765970181068,0.001,2934.1,2934.0,1.49650665]
[1765970181258,0.541,2934.1,2934.0,1.49650665]
[1765970181441,0.541,2934.1,2934.0,1.00490665]
[1765970183573,0.001,2934.1,2934.0,1.49650665]
[1765970183764,0.541,2934.1,2934.0,1.49650665]
[1765970184135,0.5402,2934.1,2934.0,1.49650665]
[1765970184337,0.5402,2934.1,2934.0,1.00490665]
[1765970186872,0.5402,2934.1,2934.0,1.49650665]
[1765970187678,0.8913,2934.1,2934.0,0.51900665]
[1765970187845,0.8913,2934.1,2934.0,0.002]
[1765970188546,0.5402,2934.1,2934.0,4.6784665]
[1765970188744,0.0002,2934.1,2934.0,4.1925665]
[1765970189955,0.0002,2934.1,2934.0,0.002]
[1765970190547,0.0002,2934.1,2934.0,0.4936]
[1765970190779,0.0002,2934.1,2934.0,1.02800467]
[1765970190975,0.0002,2934.1,2934.0,0.53640467]
[1765970194385,0.0002,2934.1,2934.0,1.02800467]
[1765970195452,0.0002,2934.1,2934.0,0.53640467]
[1765970196758,0.0002,2934.1,2934.0,1.03310467]
[1765970196974,0.0002,2934.1,2934.0,0.53640467]
[1765970197181,0.0002,2934.1,2934.0,5.1913514]
[1765970197480,0.0002,2934.1,2934.0,1.0007849]
[1765970198157,0.0002,2934.1,2934.0,1.5397849]
[1765970198945,0.0002,2934.1,2934.0,5.7303514]
[1765970199149,0.0002,2934.1,2934.0,6.1358554]
[1765970199349,0.0002,2934.1,2934.0,1.9452889]
[1765970200992,0.0002,2934.1,2934.0,5.7303514]
[1765970201291,0.0002,2934.1,2934.0,9.9209179]
[1765970204876,0.0002,2934.1,2934.0,5.7303514]
[1765970206871,0.3513,2934.1,2934.0,0.46638023]
[1765970207872,0.0002,2934.1,2934.0,0.96308023]
[1765970208080,0.0002,2934.1,2934.0,0.46638023]
[1765970208280,0.5394,2934.4,2934.0,0.002]
[1765970208502,0.5394,2934.4,2934.0,0.4987]
[1765970209390,0.5394,2934.4,2934.0,0.002]
[1765970210323,0.5394,2934.4,2934.0,0.4987]
[1765970211118,0.5394,2934.4,2934.0,0.002]
[1765970211422,0.8905,2934.4,2934.0,0.002]
[1765970213007,0.1955,2934.1,2934.0,0.002]
[1765970213330,0.8905,2934.4,2934.0,0.002]
[1765970214826,0.3511,2934.1,2934.0,0.002]
[1765970215326,0.5466,2934.1,2934.0,0.002]
[1765970216723,1.0856,2934.1,2934.0,0.002]
[1765970217434,0.5466,2934.1,2934.0,0.002]
[1765970217818,1.0856,2934.1,2934.0,0.002]
[1765970219223,0.5466,2934.1,2934.0,0.002]
[1765970219533,1.0856,2934.1,2934.0,0.002]
[1765970221240,5.27617086,2934.1,2934.0,0.002]
[1765970221404,5.80378795,2934.1,2934.0,0.002]
[1765970222029,0.7255,2933.8,2933.7,0.002]
[1765970222446,4.91607086,2933.8,2933.7,0.002]
[1765970222940,5.32157486,2933.8,2933.7,0.002]
[1765970223141,0.7255,2933.8,2933.7,0.002]
[1765970223498,0.9134,2933.8,2933.7,0.002]
[1765970223917,0.3744,2933.8,2933.7,0.002]
[1765970224114,1.264,2933.8,2933.7,0.002]
[1765970225010,0.724,2933.8,2933.7,0.002]
[1765970225213,1.264,2933.8,2933.7,0.002]
[1765970228606,2.22851417,2933.8,2933.7,0.002]
[1765970230115,2.63401817,2933.8,2933.7,0.002]
[1765970231539,2.66813098,2933.8,2933.7,0.002]
[1765970231839,6.54424423,2933.7,2933.6,0.002]
[1765970232017,2.80079169,2933.7,2933.6,0.002]
[1765970232222,2.87561146,2933.7,2933.6,0.002]
[1765970232417,1.492704,2933.7,2933.6,0.002]
[1765970234236,1.088,2933.7,2933.6,0.002]
[1765970234438,0.548,2933.7,2933.6,0.002]
[1765970234613,1.088,2933.7,2933.6,0.002]
[1765970235728,0.548,2933.7,2933.6,0.002]
[1765970236042,1.088,2933.7,2933.6,0.002]
[1765970237838,0.548,2933.7,2933.6,0.002]
[1765970238041,1.088,2933.7,2933.6,0.002]
[1765970242057,1.493504,2933.7,2933.6,0.002]
[1765970242219,2.20907591,2933.7,2933.6,0.002]
[1765970242945,1.80357191,2933.7,2933.6,0.002]
[1765970243126,1.088,2933.7,2933.6,0.002]
[1765970245228,1.493504,2933.7,2933.6,0.002]
[1765970245945,6.94410629,2933.7,2933.6,0.002]
[1765970246150,0.953504,2933.6,2933.5,0.002]
[1765970246341,1.72097848,2933.6,2933.5,0.002]
[1765970248249,1.17297848,2933.6,2932.9,0.002]
[1765970248550,0.548,2933.0,2932.9,0.002]
[1765970248937,1.088,2933.0,2932.9,0.002]
[1765970252756,0.548,2933.0,2932.9,0.002]
[1765970252926,1.088,2933.0,2932.9,0.002]
[1765970253458,0.548,2933.0,2932.9,0.002]
[1765970253754,0.8911,2933.0,2932.9,0.002]
[1765970254062,0.001,2933.7,2933.1,0.1832]
[1765970254245,0.54,2933.6,2933.2,0.4776]
[1765970254633,0.001,2933.7,2933.2,0.4776]
[1765970254961,0.001,2933.7,2933.6,0.9456]
[1765970255152,0.541,2933.7,2933.6,0.9456]
[1765970255466,0.001,2933.7,2933.6,0.9456]
[1765970255666,0.541,2933.7,2933.6,0.9456]
[1765970255866,0.541,2933.7,2933.6,1.4866]
[1765970256230,0.5402,2933.7,2933.6,1.4866]
[1765970257356,0.5402,2933.7,2933.6,6.14111105]
[1765970257659,0.5402,2933.7,2933.6,6.75522216]
[1765970258428,0.0002,2933.7,2933.6,6.29792216]
[1765970258633,0.5402,2933.7,2933.6,6.29792216]
[1765970259064,0.5402,2933.7,2933.6,6.75522216]
[1765970260265,0.7371,2933.7,2933.6,1.61949134]
[1765970260570,0.7371,2933.7,2933.6,1.00538023]
[1765970261034,0.5402,2933.7,2933.6,1.47278023]
[1765970262471,0.5402,2933.7,2933.6,1.93008023]
[1765970262635,0.5402,2933.7,2933.6,1.47278023]
[1765970264060,0.5402,2933.7,2933.6,5.66291105]
[1765970264262,0.5402,2933.7,2933.6,6.68670216]
[1765970265341,0.0002,2933.7,2933.6,6.68670216]
[1765970265543,0.5402,2933.7,2933.6,6.68670216]
[1765970266059,0.5402,2933.7,2933.6,2.49657134]
[1765970266235,0.5402,2933.7,2933.6,5.66291105]
[1765970266765,0.5402,2933.7,2933.6,1.47278023]
[1765970267139,0.1971,2933.7,2933.6,0.46438023]
[1765970267342,0.7371,2933.7,2933.6,0.46438023]
[1765970267542,0.1971,2933.7,2933.6,0.46438023]
[1765970267743,0.7371,2933.7,2933.6,0.46438023]
[1765970267943,1.0867,2933.7,2933.6,0.46438023]
[1765970268446,0.7371,2933.7,2933.6,0.46438023]
[1765970269448,0.1971,2933.7,2933.6,0.46438023]
[1765970269768,0.7371,2933.7,2933.6,0.46438023]
[1765970270979,0.1971,2933.7,2933.6,0.46438023]
[1765970271271,0.7371,2933.7,2933.6,0.46438023]
[1765970274077,0.0002,2933.7,2933.6,1.38908023]
[1765970274281,0.5402,2933.7,2933.6,1.38908023]
[1765970275665,0.5402,2933.7,2933.6,0.93178023]
[1765970276056,0.0002,2933.7,2933.6,0.46438023]
[1765970277162,0.0002,2933.7,2933.6,1.05584961]
[1765970277560,0.0002,2933.7,2933.6,1.59584961]
[1765970278372,0.0002,2933.7,2933.6,2.03544142]
[1765970278572,0.0002,2933.7,2933.6,2.00135361]
[1765970278775,0.0002,2933.7,2933.6,1.59584961]
[1765970279076,0.0002,2933.7,2933.6,1.00438023]
[1765970280047,0.0002,2933.7,2933.6,1.46168023]
[1765970280375,0.5404,2934.0,2933.7,0.46438023]
[1765970280571,0.5404,2934.0,2933.7,0.4573]
[1765970281273,0.5404,2934.0,2933.9,0.4674]
[1765970281780,0.7373,2934.0,2933.7,0.4573]
[1765970281977,0.7373,2934.0,2933.6,0.46438023]
[1765970282179,0.7373,2934.0,2933.5,0.002]
[1765970282180,0.3511,2933.6,2933.5,0.002]
[1765970282677,0.3511,2933.6,2933.5,0.5424]
[1765970283276,0.3511,2933.6,2933.5,0.002]
[1765970288566,0.3511,2933.6,2933.5,0.46638023]
[1765970288772,0.3511,2933.6,2933.5,1.05785782]
[1765970288958,0.3511,2933.6,2933.5,0.3531]
[1765970289285,0.3511,2933.6,2933.5,0.002]
[1765970289286,0.8911,2933.6,2933.5,0.002]
[1765970289485,0.8911,2933.6,2933.5,0.7389]
[1765970289883,0.001,2933.7,2933.5,0.7389]
[1765970290090,0.54,2933.6,2933.5,0.7389]
[1765970290286,0.001,2933.7,2933.5,0.7389]
[1765970290487,0.001,2933.7,2933.5,1.20328023]
[1765970290692,0.001,2933.7,2933.6,0.66516759]
[1765970293559,0.001,2933.7,2933.6,1.1047594]
[1765970293792,0.001,2933.7,2933.6,1.07067159]
[1765970297396,0.001,2933.7,2933.6,9.91036532]
[1765970298090,0.1969,2933.8,2933.7,0.86988423]
[1765970298291,0.0004,2934.0,2933.8,0.46438023]
[1765970298486,0.0004,2934.0,2933.9,8.83969373]
[1765970298990,0.0004,2934.0,2933.9,9.19079373]
[1765970299394,0.0004,2934.0,2933.9,6.51056051]
[1765970300290,0.0004,2934.0,2933.9,6.96116051]
[1765970300597,0.0004,2934.0,2933.9,7.75922361]
[1765970301494,0.1973,2934.0,2933.9,1.65863933]
[1765970301991,0.0004,2934.0,2933.9,1.26608023]
[1765970302193,0.0004,2934.0,2933.9,1.25506855]
[1765970302377,0.0004,2934.0,2933.9,1.22098423]
[1765970303184,0.0004,2934.0,2933.9,1.67158423]
[1765970303608,0.0004,2934.0,2933.9,1.22098423]
[1765970304308,0.1969,2934.1,2934.0,0.86988423]
[1765970304471,0.3496,2934.4,2934.0,0.61459085]
[1765970304676,0.3496,2934.4,2933.8,0.856104]
[1765970304877,0.3511,2934.7,2934.1,0.3496]
[1765970305787,0.3511,2934.7,2934.1,1.45678023]
[1765970305988,0.1756,2934.8,2934.1,1.00618023]
[1765970306189,0.1756,2934.8,2934.1,1.10718023]
[1765970306392,0.3511,2934.7,2934.2,0.541]
[1765970306599,0.1969,2934.3,2934.2,1.22122605]
[1765970307000,0.3511,2934.7,2934.2,1.67182605]
[1765970307401,0.3511,2934.7,2934.2,1.13082605]
[1765970307707,0.3511,2934.7,2934.3,0.541]
[1765970308703,0.1969,2934.4,2934.3,0.541]
[1765970308878,0.1969,2934.4,2934.3,0.72878063]
[1765970309687,0.1766,2934.8,2934.3,1.64868063]
[1765970309886,0.7166,2934.8,2934.3,1.64868063]
[1765970310287,1.0677,2934.8,2934.3,1.64868063]
[1765970310897,0.3511,2934.7,2934.3,1.19808063]
[1765970311397,0.1969,2934.4,2934.3,0.72878063]
[1765970311596,0.5465,2934.4,2934.3,0.72878063]
[1765970312326,0.1969,2934.4,2934.3,0.72878063]
[1765970313122,0.5465,2934.4,2934.3,0.72878063]
[1765970313322,0.1969,2934.4,2934.3,0.72878063]
[1765970315135,0.3496,2934.7,2934.3,0.64318063]
[1765970315320,0.3496,2934.7,2934.3,0.4554]
[1765970315524,0.1984,2934.4,2934.2,0.68022605]
[1765970315722,0.1984,2934.3,2934.2,0.68022605]
[1765970315900,0.1984,2934.3,2934.0,0.7166]
[1765970316301,0.5465,2934.3,2933.9,0.46438023]
[1765970316539,0.3481,2934.3,2934.0,0.3481]
[1765970316839,0.001,2934.4,2934.0,0.3481]
[1765970317129,0.3521,2934.4,2934.0,0.3481]
[1765970317846,0.3521,2934.4,2934.0,0.8328]
[1765970319547,0.549,2934.4,2934.3,4.18773805]
[1765970320740,0.3521,2934.4,2934.1,0.46438023]
[1765970320912,0.5465,2934.1,2934.0,0.46438023]
[1765970321106,0.001,2934.4,2934.0,0.46438023]
[1765970321513,0.539,2934.3,2934.0,0.46438023]
[1765970321950,0.1969,2934.1,2934.0,0.46438023]
[1765970324539,0.3506,2934.4,2934.0,0.46438023]
[1765970324540,0.3521,2934.4,2934.0,1.43346206]
[1765970324843,0.1969,2934.1,2934.0,0.46438023]
[1765970325343,0.5465,2934.1,2934.0,0.46438023]
[1765970326940,0.54,2934.4,2934.0,0.91978023]
[1765970327118,0.8911,2934.4,2934.0,1.40448023]
[1765970327315,0.8911,2934.4,2934.0,0.91978023]
[1765970327517,0.3511,2934.1,2934.0,0.46438023]
[1765970328356,0.3503,2934.1,2934.0,0.46438023]
[1765970329566,0.54,2934.4,2934.0,0.91978023]
[1765970330070,0.8903,2934.4,2934.0,0.91978023]
[1765970330436,0.196,2934.3,2934.2,4.18773805]
[1765970330637,0.196,2934.3,2934.2,4.65211828]
[1765970332971,0.196,2934.3,2934.2,0.46438023]
[1765970333159,0.54,2934.4,2934.2,0.46438023]
[1765970333160,0.3513,2934.4,2934.3,0.46438023]
[1765970333363,0.002,2934.3,2934.2,0.46438023]
[1765970337895,0.002,2934.3,2934.0,0.3533]
[1765970337896,0.736,2934.4,2934.1,0.46438023]
[1765970338063,0.736,2934.4,2934.0,0.3533]
[1765970338263,0.54,2934.3,2934.1,0.46438023]
[1765970338574,0.001,2934.3,2934.2,0.4842]
[1765970340148,0.001,2934.3,2934.2,0.9419]
[1765970340609,0.001,2934.3,2934.2,0.4842]
[1765970342479,0.0035,2934.2,2934.1,0.92979206]
[1765970342793,0.001,2934.3,2934.2,0.4842]
[1765970343494,0.001,2934.3,2934.2,1.14424301]
[1765970343906,0.197,2934.3,2934.2,0.66004301]
[1765970344198,0.197,2934.3,2934.2,0.46438023]
[1765970346162,0.5458,2934.3,2934.2,0.46438023]
[1765970346364,0.5458,2934.3,2934.0,0.002]
[1765970346365,0.5448,2934.1,2934.0,0.002]
[1765970352115,0.544,2934.1,2934.0,0.002]
[1765970353424,0.545,2934.1,2934.0,0.002]
[1765970354393,1.084,2934.1,2934.0,0.002]
[1765970357321,1.61127381,2934.1,2934.0,0.002]
[1765970357939,1.084,2934.1,2934.0,0.002]
[1765970358303,0.545,2934.1,2934.0,0.002]
[1765970358530,1.084,2934.1,2934.0,0.002]
[1765970359200,0.545,2934.1,2934.0,0.002]
[1765970359529,1.084,2934.1,2934.0,0.002]
[1765970361421,1.61154065,2934.1,2934.0,0.002]
[1765970361633,1.084,2934.1,2934.0,0.002]
[1765970364837,0.545,2934.1,2934.0,0.002]
[1765970365031,1.084,2934.1,2934.0,0.002]
[1765970372422,0.545,2934.1,2934.0,0.002]
[1765970372740,1.084,2934.1,2934.0,0.002]
[1765970372934,5.27440649,2934.1,2934.0,0.002]
[1765970373134,5.80194714,2934.1,2934.0,0.002]
[1765970374133,6.20745114,2934.1,2934.0,0.002]
[1765970376235,6.20665114,2934.1,2934.0,0.002]
[1765970376625,2.01624465,2934.1,2934.0,0.002]
[1765970376829,1.488704,2934.1,2934.0,0.002]
[1765970381091,0.949704,2934.1,2934.0,0.002]
[1765970381270,1.488704,2934.1,2934.0,0.002]
[1765970381464,0.949704,2934.1,2934.0,0.002]
[1765970381664,5.67911049,2934.1,2934.0,0.002]
[1765970381872,5.67911049,2934.1,2933.6,0.002]
[1765970381873,9.33351698,2933.7,2933.6,0.002]
[1765970382179,16.86230249,2933.7,2933.6,0.002]
[1765970383096,19.83430249,2933.7,2933.6,0.002]
[1765970383301,22.55270898,2933.7,2933.6,0.002]
[1765970383500,0.3507,2933.6,2933.5,0.002]
[1765970383802,18.14231771,2933.6,2933.5,0.002]
[1765970383970,16.32219571,2933.6,2933.5,0.002]
[1765970384468,15.97149571,2933.6,2932.9,0.002]
[1765970384668,0.98481681,2933.0,2932.9,0.002]
[1765970384868,30.04611602,2933.0,2932.9,0.002]
[1765970385069,30.91527558,2933.0,2932.9,0.002]
[1765970385270,33.66420858,2933.0,2932.9,0.002]
[1765970385497,33.04752858,2933.0,2932.9,0.002]
[1765970385695,21.78486423,2932.9,2932.8,0.002]
[1765970385904,15.96074223,2932.9,2932.8,0.002]
[1765970386197,16.94779393,2932.9,2932.8,0.002]
[1765970386695,0.948804,2932.6,2932.3,0.002]
[1765970386899,5.67921049,2932.6,2932.3,0.002]
[1765970390480,0.952704,2932.4,2932.3,0.002]
[1765970390685,5.14311049,2932.4,2932.3,0.002]
[1765970391001,1.52442633,2932.4,2932.3,0.002]
[1765970391199,5.14311049,2932.4,2932.3,0.002]
[1765970391604,5.68311049,2932.4,2932.3,0.002]
[1765970391978,9.87351698,2932.4,2932.3,0.002]
[1765970392180,5.68311049,2932.4,2932.3,0.002]
[1765970392588,5.14311049,2932.4,2932.3,0.002]
[1765970392789,2.01042633,2932.4,2932.3,0.002]
[1765970394879,1.06492233,2932.4,2932.3,0.002]
[1765970395106,1.60492233,2932.4,2932.3,0.002]
[1765970396402,1.06492233,2932.4,2932.3,0.002]
[1765970396603,1.0872,2932.4,2932.3,0.002]
[1765970399204,1.0882,2932.4,2932.3,0.002]
[1765970400306,0.5474,2932.4,2932.3,0.002]
[1765970400908,0.8889,2932.4,2932.3,0.002]
[1765970401478,1.0874,2932.4,2932.3,0.002]
[1765970401875,0.8889,2932.4,2932.3,0.002]
[1765970403512,1.0874,2932.4,2932.3,0.002]
[1765970404014,0.5474,2932.4,2932.3,0.002]
[1765970404219,1.0874,2932.4,2932.3,0.002]
[1765970405825,0.8889,2932.4,2932.3,0.002]
[1765970406692,0.3489,2932.4,2932.3,0.002]
[1765970406914,0.001,2932.4,2932.3,0.9733]
[1765970407212,0.541,2932.4,2932.3,0.4769]
[1765970409225,0.001,2932.4,2932.3,0.9733]
[1765970409724,0.541,2932.4,2932.3,1.01240065]
[1765970410221,0.541,2932.4,2932.3,1.50880065]
[1765970413122,0.541,2932.4,2932.3,1.01240065]
[1765970414318,0.7386,2932.4,2932.3,1.01240065]
[1765970414502,0.541,2932.4,2932.3,0.9733]
[1765970415715,0.541,2932.4,2932.3,0.4769]
[1765970415890,0.541,2932.4,2932.3,0.9733]
[1765970417620,0.541,2932.4,2932.3,1.0179]
[1765970418025,0.541,2932.4,2932.3,1.5143]
[1765970419826,0.541,2932.4,2932.3,2.15070876]
[1765970420324,0.541,2932.4,2932.3,1.17940876]
[1765970420620,0.541,2932.4,2932.3,0.002]
[1765970420811,0.541,2932.4,2932.3,0.4769]
[1765970421425,0.541,2932.4,2932.3,0.9733]
[1765970421994,0.8889,2932.4,2932.3,0.002]
[1765970423730,0.541,2932.4,2932.3,0.002]
[1765970423931,0.541,2932.4,2932.3,0.9733]
[1765970424101,0.5402,2932.4,2932.3,4.86306738]
[1765970424301,0.5402,2932.4,2932.3,5.33796738]
[1765970424602,0.0002,2932.4,2932.3,5.30594761]
[1765970424822,0.5402,2932.4,2932.3,5.30594761]
[1765970425302,0.5402,2932.4,2932.3,5.80234761]